bitfinex-derivatives/quotes_BTCF0:USTF0_20210406
["timestamp","ask_amount","ask_price","bid_price","bid_amount"]
[1617730507527,0.1281,58164.0,58148.0,0.10369]
[1617730507726,0.1281,58164.0,58149.0,1.0]
[1617730507934,0.1281,58164.0,58153.0,0.10725655]
[1617730508840,0.1281,58164.0,58158.0,1.0]
[1617730509049,0.1281,58164.0,58157.0,1.0]
[1617730509241,0.1281,58164.0,58156.0,1.0]
[1617730509444,0.1281,58164.0,58153.0,0.10725655]
[1617730509732,0.1281,58164.0,58154.0,0.27]
[1617730510534,0.0516,58163.0,58154.0,0.27]
[1617730510732,0.1281,58164.0,58154.0,0.27]
[1617730511736,0.0508,58163.0,58154.0,0.27]
[1617730511934,0.10725655,58155.0,58154.0,0.27]
[1617730512935,0.10725655,58155.0,58154.0,1.27]
[1617730513539,0.10725655,58155.0,58154.0,0.27]
[1617730516242,0.10725655,58155.0,58154.0,1.27]
[1617730520544,0.10725655,58155.0,58154.0,0.27]
[1617730520745,0.10725655,58155.0,58154.0,1.27]
[1617730520945,0.10725655,58155.0,58154.0,0.27]
[1617730521145,0.10725655,58155.0,58154.0,1.27]
[1617730522645,0.10725655,58155.0,58154.0,1.36157568]
[1617730530658,0.10725655,58155.0,58154.0,1.86295127]
[1617730531660,0.1281,58177.0,58154.0,1.86295127]
[1617730532157,0.1281,58177.0,58169.0,1.12777]
[1617730532363,0.1281,58177.0,58170.0,1.0]
[1617730533759,0.1281,58177.0,58169.0,1.12777]
[1617730534159,0.1281,58177.0,58170.0,1.0]
[1617730536070,0.10725655,58171.0,58169.0,0.12777]
[1617730536464,0.10725655,58171.0,58169.0,1.12777]
[1617730536665,0.10725655,58171.0,58170.0,1.0]
[1617730537367,0.10725655,58171.0,58169.0,0.12777]
[1617730537666,0.10725655,58171.0,58170.0,1.27]
[1617730537865,0.10725655,58171.0,58170.0,1.38876]
[1617730538066,0.10725655,58171.0,58170.0,1.11876]
[1617730538468,0.10725655,58171.0,58170.0,1.38876]
[1617730541769,0.10725655,58171.0,58170.0,0.38876]
[1617730542070,0.10725655,58171.0,58170.0,1.38876]
[1617730542270,0.10725655,58171.0,58170.0,0.38876]
[1617730542572,0.15875655,58171.0,58170.0,0.38876]
[1617730543670,0.15875655,58171.0,58170.0,1.38876]
[1617730544272,0.10725655,58171.0,58170.0,1.38876]
[1617730544472,0.10725655,58171.0,58170.0,0.38876]
[1617730546392,0.15845655,58171.0,58170.0,0.38876]
[1617730547173,0.15845655,58171.0,58170.0,1.38876]
[1617730547373,0.15845655,58171.0,58170.0,0.38876]
[1617730547374,0.10725655,58171.0,58170.0,0.38876]
[1617730547574,0.10725655,58171.0,58170.0,0.27]
[1617730548073,0.10725655,58171.0,58168.0,1.27]
[1617730548274,0.10725655,58171.0,58169.0,0.01]
[1617730548473,0.10725655,58171.0,58170.0,0.26]
[1617730548674,0.10725655,58171.0,58168.0,0.27]
[1617730548973,0.10725655,58171.0,58170.0,0.26]
[1617730549375,0.10725655,58171.0,58168.0,1.27]
[1617730549576,0.10725655,58171.0,58170.0,0.25]
[1617730549976,0.10725655,58171.0,58169.0,0.27]
[1617730550278,0.10725655,58171.0,58162.0,0.10513]
[1617730550477,0.10725655,58171.0,58164.0,0.27]
[1617730550676,0.10725655,58171.0,58170.0,0.27]
[1617730550876,0.10725655,58171.0,58163.0,0.01]
[1617730551176,0.10725655,58171.0,58162.0,0.10513]
[1617730551378,0.10725655,58171.0,58163.0,0.27]
[1617730551777,0.10725655,58171.0,58169.0,1.0]
[1617730552276,0.10725655,58171.0,58170.0,0.01]
[1617730552576,0.10725655,58171.0,58169.0,1.36725655]
[1617730552777,0.10725655,58171.0,58169.0,1.10725655]
[1617730552980,0.10725655,58171.0,58170.0,0.27]
[1617730553681,0.10725655,58171.0,58170.0,1.27]
[1617730554177,0.10725655,58171.0,58170.0,0.27]
[1617730556378,0.10725655,58171.0,58170.0,1.27]
[1617730560279,0.10725655,58171.0,58170.0,0.27]
[1617730560481,0.10725655,58171.0,58170.0,1.27]
[1617730560682,0.15895655,58171.0,58170.0,1.27]
[1617730561781,0.10725655,58171.0,58170.0,1.27]
[1617730563787,0.10725655,58171.0,58170.0,0.27]
[1617730563986,0.10725655,58171.0,58170.0,1.27]
[1617730565386,0.10725655,58171.0,58170.0,0.27]
[1617730565691,0.15915655,58171.0,58170.0,1.27]
[1617730565900,0.10725655,58171.0,58170.0,1.27]
[1617730572596,0.10725655,58171.0,58170.0,1.41216]
[1617730574298,0.10725655,58171.0,58170.0,1.9125468]
[1617730577002,0.10725655,58171.0,58170.0,0.9125468]
[1617730577205,0.10725655,58171.0,58170.0,1.7703868]
[1617730578304,0.10725655,58171.0,58170.0,0.7703868]
[1617730578504,0.10725655,58171.0,58170.0,1.7703868]
[1617730582007,0.10725655,58171.0,58170.0,0.7703868]
[1617730582307,0.10725655,58171.0,58170.0,1.7703868]
[1617730587651,0.10725655,58171.0,58170.0,0.7703868]
[1617730587887,0.30725655,58171.0,58170.0,0.5003868]
[1617730588033,0.10725655,58171.0,58170.0,0.5003868]
[1617730588411,0.10725655,58171.0,58162.0,0.49983382]
[1617730588637,0.25651655,58163.0,58162.0,0.49983382]
[1617730588973,0.25651655,58163.0,58160.0,0.50011231]
[1617730589134,0.25651655,58163.0,58155.0,0.45160854]
[1617730589529,0.25651655,58163.0,58140.0,0.1424452]
[1617730589530,0.25651655,58163.0,58145.0,0.56017018]
[1617730589839,1.0,58162.0,58145.0,0.56017018]
[1617730590024,1.75651655,58163.0,58143.0,0.56036839]
[1617730590025,1.0,58153.0,58143.0,0.56036839]
[1617730590216,1.5,58161.0,58143.0,0.56036839]
[1617730590217,2.5,58152.0,58143.0,0.56036839]
[1617730590419,0.10725655,58144.0,58143.0,0.56036839]
[1617730590614,0.20744655,58144.0,58136.0,0.56105763]
[1617730590815,2.70744655,58144.0,58136.0,0.56105763]
[1617730591016,1.0,58143.0,58132.0,0.56146692]
[1617730591418,1.5,58142.0,58128.0,0.56201297]
[1617730591721,2.5,58142.0,58128.0,0.52821297]
[1617730591940,1.0,58141.0,58118.0,0.70276518]
[1617730592116,1.5,58140.0,58118.0,0.70276518]
[1617730592317,1.5,58135.0,58118.0,0.70276518]
[1617730592518,0.10725655,58121.0,58120.0,0.55955655]
[1617730592718,0.26218655,58121.0,58120.0,0.55955655]
[1617730592958,0.26116875,58121.0,58120.0,0.4523]
[1617730593120,0.26116875,58121.0,58114.0,0.70341954]
[1617730593620,0.26116875,58121.0,58113.0,0.7034678]
[1617730593820,0.26116875,58121.0,58115.0,0.27]
[1617730594022,0.26116875,58121.0,58114.0,0.27]
[1617730594220,0.26116875,58121.0,58113.0,0.7034678]
[1617730594520,0.26116875,58121.0,58116.0,0.27]
[1617730594757,0.26116875,58121.0,58114.0,0.27]
[1617730594930,0.26116875,58121.0,58117.0,0.01]
[1617730595421,0.26116875,58121.0,58114.0,0.27]
[1617730596622,0.10725655,58115.0,58114.0,0.27]
[1617730598223,0.10725655,58115.0,58114.0,1.27]
[1617730599525,0.1281,58141.0,58114.0,1.27]
[1617730599725,0.1281,58141.0,58114.0,1.42712]
[1617730599925,0.1281,58141.0,58124.0,1.0]
[1617730600125,0.1281,58141.0,58128.0,1.0]
[1617730600527,0.10725655,58129.0,58128.0,1.10172]
[1617730602029,0.10725655,58129.0,58128.0,0.10172]
[1617730602273,0.10725655,58129.0,58128.0,1.10172]
[1617730602458,0.10725655,58129.0,58128.0,1.37172]
[1617730608136,0.1281,58141.0,58128.0,0.37172]
[1617730608336,0.1281,58159.0,58128.0,0.37172]
[1617730608536,0.1281,58159.0,58128.0,1.37172]
[1617730608738,0.1281,58159.0,58146.0,1.0]
[1617730608938,0.1281,58159.0,58146.0,1.15]
[1617730609238,0.1281,58159.0,58147.0,1.0]
[1617730610643,0.10725655,58148.0,58147.0,1.0]
[1617730611643,0.10725655,58148.0,58146.0,1.15]
[1617730611844,0.10725655,58148.0,58146.0,0.15]
[1617730612042,0.0512,58147.0,58146.0,0.15]
[1617730612342,0.10725655,58148.0,58146.0,0.15]
[1617730613546,0.0519,58147.0,58146.0,0.15]
[1617730614046,0.0519,58147.0,58142.0,0.10725655]
[1617730616047,0.0519,58147.0,58145.0,1.0]
[1617730616348,0.0519,58147.0,58145.0,0.14116]
[1617730617249,0.10725655,58148.0,58145.0,0.14116]
[1617730619855,0.0523,58147.0,58145.0,0.14116]
[1617730620055,0.10725655,58148.0,58145.0,0.14116]
[1617730621255,0.10725655,58148.0,58144.0,1.0]
[1617730622655,0.10725655,58148.0,58145.0,1.0]
[1617730622955,0.10725655,58148.0,58147.0,1.0]
[1617730629666,0.10725655,58148.0,58147.0,0.27]
[1617730629864,0.257,58170.0,58147.0,1.42012]
[1617730630164,0.1281,58174.0,58158.0,1.0]
[1617730630665,0.1281,58174.0,58163.0,1.13369]
[1617730630865,0.1281,58174.0,58164.0,0.10725655]
[1617730631867,0.1281,58174.0,58164.0,1.10725655]
[1617730632870,0.10725655,58165.0,58164.0,1.10725655]
[1617730633070,0.15925655,58165.0,58164.0,1.10725655]
[1617730633271,0.15925655,58165.0,58164.0,0.10725655]
[1617730633671,0.15925655,58165.0,58164.0,1.10725655]
[1617730634071,0.15925655,58165.0,58164.0,0.10725655]
[1617730634471,0.15925655,58165.0,58164.0,1.10725655]
[1617730635774,0.10725655,58165.0,58164.0,1.10725655]
[1617730637081,0.10725655,58165.0,58164.0,0.10725655]
[1617730638878,0.10725655,58165.0,58164.0,1.10725655]
[1617730641282,0.10725655,58165.0,58164.0,0.10725655]
[1617730649294,0.10725655,58165.0,58164.0,1.10725655]
[1617730649696,0.10725655,58165.0,58164.0,0.10725655]
[1617730650194,0.10725655,58165.0,58164.0,1.10725655]
[1617730651495,0.10725655,58165.0,58164.0,0.10725655]
[1617730651996,0.10725655,58165.0,58164.0,1.10725655]
[1617730652197,0.10725655,58165.0,58164.0,1.37725655]
[1617730656103,0.15855655,58165.0,58164.0,1.37725655]
[1617730657303,0.15855655,58165.0,58164.0,0.37725655]
[1617730657703,0.29469655,58165.0,58164.0,0.27]
[1617730658403,0.29469655,58165.0,58161.0,0.27]
[1617730658604,0.29469655,58165.0,58158.0,0.01]
[1617730658803,0.29469655,58165.0,58164.0,0.26]
[1617730659124,0.29469655,58165.0,58158.0,0.27]
[1617730659331,0.29469655,58165.0,58157.0,1.0]
[1617730659332,0.29469655,58165.0,58164.0,0.27]
[1617730659608,0.29469655,58165.0,58158.0,0.27]
[1617730659807,0.29469655,58165.0,58159.0,1.0]
[1617730660004,0.15855655,58165.0,58164.0,0.27]
[1617730660205,0.15855655,58165.0,58162.0,1.0]
[1617730660504,0.15855655,58165.0,58164.0,0.27]
[1617730660705,0.15855655,58165.0,58164.0,0.14634]
[1617730661105,0.10725655,58165.0,58164.0,1.52359655]
[1617730661505,0.10725655,58165.0,58164.0,1.25359655]
[1617730661707,0.10725655,58165.0,58164.0,2.02278076]
[1617730662206,0.10725655,58165.0,58164.0,1.52359655]
[1617730662606,0.10725655,58165.0,58164.0,2.02270368]
[1617730663508,0.10725655,58165.0,58164.0,1.52359655]
[1617730663909,0.10725655,58165.0,58164.0,1.61515353]
[1617730664410,0.10725655,58165.0,58164.0,2.02270424]
[1617730664811,0.10725655,58165.0,58164.0,1.61515517]
[1617730665511,0.10725655,58165.0,58164.0,1.52359655]
[1617730665812,0.10725655,58165.0,58164.0,1.61515653]
[1617730666212,0.10725655,58165.0,58164.0,2.0227299]
[1617730669615,0.10745655,58165.0,58164.0,1.0227299]
[1617730670023,0.10745655,58165.0,58164.0,2.0227299]
[1617730671517,0.10745655,58165.0,58164.0,1.52359655]
[1617730672118,0.10745655,58165.0,58164.0,2.02262045]
[1617730685429,0.10745655,58165.0,58164.0,1.02262045]
[1617730685631,0.10745655,58165.0,58164.0,2.02262045]
[1617730687834,0.10745655,58165.0,58164.0,2.58296796]
[1617730689636,0.10643928,58165.0,58164.0,2.58296796]
[1617730689835,0.10643928,58165.0,58164.0,1.58296796]
[1617730690046,0.10643928,58165.0,58164.0,2.58296796]
[1617730694244,0.10643928,58165.0,58164.0,1.58296796]
[1617730694655,0.10643928,58165.0,58164.0,1.02262045]
[1617730697546,0.10643928,58165.0,58164.0,2.02262045]
[1617730697948,0.10643928,58165.0,58164.0,1.02262045]
[1617730699048,0.10643928,58165.0,58164.0,1.58202453]
[1617730700752,0.10643928,58165.0,58164.0,2.58202453]
[1617730701151,0.10643928,58165.0,58164.0,1.9153639]
[1617730701860,0.10643928,58165.0,58164.0,0.9153639]
[1617730702067,0.10643928,58165.0,58164.0,1.9153639]
[1617730702853,0.10643928,58165.0,58164.0,1.47479515]
[1617730703752,0.10643928,58165.0,58164.0,2.47479515]
[1617730704252,0.10643928,58165.0,58164.0,1.47479515]
[1617730704655,0.10643928,58165.0,58164.0,0.9153639]
[1617730706355,0.15763928,58165.0,58164.0,0.9153639]
[1617730706756,0.10643928,58165.0,58164.0,0.9153639]
[1617730707856,0.15823928,58165.0,58164.0,0.9153639]
[1617730708257,0.10643928,58165.0,58164.0,0.9153639]
[1617730713363,0.10643928,58165.0,58164.0,2.02262045]
[1617730713564,0.10643928,58165.0,58164.0,2.5823967]
[1617730719574,0.10643928,58165.0,58164.0,2.02262045]
[1617730719977,0.10643928,58165.0,58164.0,2.58223682]
[1617730728281,0.0002,58165.0,58164.0,2.58223682]
[1617730732008,0.0002,58165.0,58164.0,2.02262045]
[1617730733289,0.1281,58175.0,58164.0,2.02262045]
[1617730733791,0.1281,58175.0,58174.0,1.0]
[1617730733989,0.1281,58175.0,58174.0,1.49929023]
[1617730734189,0.1281,58175.0,58174.0,1.76929023]
[1617730735391,0.1281,58175.0,58174.0,1.87654678]
[1617730735590,0.0519,58176.0,58174.0,1.87654678]
[1617730735890,0.0519,58176.0,58175.0,1.0]
[1617730736091,0.10725655,58177.0,58175.0,1.49935552]
[1617730736392,0.10725655,58177.0,58175.0,1.76935552]
[1617730736591,0.10725655,58177.0,58176.0,1.49939126]
[1617730736792,0.10725655,58177.0,58176.0,1.61376126]
[1617730736993,0.10725655,58177.0,58176.0,1.88376126]
[1617730737194,0.10725655,58177.0,58176.0,0.88376126]
[1617730737595,0.10725655,58177.0,58176.0,1.88376126]
[1617730741299,0.10725655,58177.0,58176.0,0.88376126]
[1617730746204,0.10725655,58177.0,58176.0,1.88376126]
[1617730746403,0.15845655,58177.0,58176.0,1.88376126]
[1617730746703,0.15845655,58177.0,58176.0,0.88376126]
[1617730746903,0.15845655,58177.0,58176.0,1.88376126]
[1617730747304,0.10725655,58177.0,58176.0,1.88376126]
[1617730748307,0.15895655,58177.0,58176.0,1.88376126]
[1617730753018,0.15895655,58177.0,58176.0,1.93466126]
[1617730755515,0.15895655,58177.0,58176.0,1.88376126]
[1617730759816,0.15895655,58177.0,58176.0,1.93526126]
[1617730760417,0.15895655,58177.0,58176.0,1.88376126]
[1617730761541,0.15895655,58177.0,58176.0,0.88376126]
[1617730761847,0.15895655,58177.0,58176.0,1.88376126]
[1617730762830,0.15895655,58177.0,58176.0,1.93476126]
[1617730764525,0.15895655,58177.0,58176.0,1.88376126]
[1617730765528,0.15895655,58177.0,58176.0,1.93506126]
[1617730765832,0.15895655,58177.0,58176.0,0.93506126]
[1617730766040,0.15895655,58177.0,58176.0,1.93506126]
[1617730766229,0.15895655,58177.0,58176.0,1.88376126]
[1617730777040,0.15895655,58177.0,58176.0,0.76939126]
[1617730777441,0.15895655,58177.0,58176.0,1.76939126]
[1617730785454,0.15895655,58177.0,58176.0,0.76939126]
[1617730785655,0.15895655,58177.0,58176.0,1.76939126]
[1617730787369,0.10725655,58177.0,58176.0,1.76939126]
[1617730789761,0.10725655,58177.0,58176.0,2.32937334]
[1617730795768,0.07,58185.0,58176.0,2.32937334]
[1617730796170,0.07,58185.0,58184.0,1.60736624]
[1617730796472,0.07,58185.0,58184.0,2.02098624]
[1617730798273,0.17725655,58185.0,58184.0,2.02098624]
[1617730800877,0.17725655,58185.0,58184.0,1.02098624]
[1617730802681,0.17725655,58185.0,58184.0,2.02098624]
[1617730803382,0.17725655,58185.0,58184.0,1.02098624]
[1617730803983,0.17725655,58185.0,58184.0,2.02098624]
[1617730806786,0.17725655,58185.0,58184.0,1.02098624]
[1617730806986,0.17725655,58185.0,58184.0,2.02098624]
[1617730808299,0.10725655,58185.0,58184.0,2.02098624]
[1617730808488,0.17725655,58185.0,58184.0,2.02098624]
[1617730818918,0.17725655,58185.0,58184.0,0.87736624]
[1617730819128,0.17725655,58185.0,58184.0,0.77010969]
[1617730827916,0.17725655,58185.0,58184.0,0.89402969]
[1617730829920,1.82966655,58185.0,58184.0,0.77010969]
[1617730830320,1.82966655,58185.0,58184.0,0.27]
[1617730830921,0.32966655,58185.0,58184.0,0.27]
[1617730831120,0.17725655,58185.0,58184.0,0.27]
[1617730831724,0.17725655,58185.0,58184.0,0.7706322]
[1617730832458,0.33631655,58185.0,58184.0,0.7706322]
[1617730832633,0.33631655,58185.0,58184.0,0.27]
[1617730832823,1.83631655,58185.0,58184.0,0.27]
[1617730833024,1.83631655,58185.0,58184.0,0.2558]
[1617730834024,1.83631655,58185.0,58182.0,0.50084466]
[1617730834222,2.83631655,58185.0,58182.0,0.48984466]
[1617730834434,2.83631655,58185.0,58171.0,0.56124343]
[1617730834623,1.83631655,58185.0,58171.0,0.56124343]
[1617730835024,1.83631655,58185.0,58170.0,0.56136698]
[1617730835224,1.83631655,58185.0,58172.0,0.27]
[1617730835626,1.83631655,58185.0,58171.0,0.5712978]
[1617730835825,1.83631655,58185.0,58173.0,0.26]
[1617730836026,1.83631655,58185.0,58171.0,0.5612978]
[1617730836225,1.83631655,58185.0,58172.0,0.27]
[1617730836428,1.83631655,58185.0,58174.0,0.27]
[1617730836627,1.72906,58185.0,58174.0,0.27]
[1617730836827,1.72906,58185.0,58172.0,0.27]
[1617730837227,1.72906,58185.0,58172.0,0.83122902]
[1617730837628,1.72906,58185.0,58172.0,0.56122902]
[1617730838030,1.72906,58185.0,58173.0,0.27]
[1617730838630,0.10725655,58174.0,58173.0,0.27]
[1617730839736,0.10725655,58174.0,58172.0,0.01]
[1617730840332,0.10725655,58174.0,58173.0,0.27]
[1617730840534,0.10725655,58174.0,58172.0,0.27]
[1617730840735,0.10725655,58174.0,58173.0,0.27]
[1617730841032,0.10725655,58174.0,58171.0,0.26]
[1617730841232,0.10725655,58174.0,58171.0,0.82124674]
[1617730841533,0.10725655,58174.0,58171.0,0.56124674]
[1617730841734,0.10725655,58174.0,58172.0,0.27]
[1617730843436,0.10725655,58174.0,58172.0,0.83093999]
[1617730843734,0.10725655,58174.0,58172.0,0.56093999]
[1617730844135,0.10725655,58174.0,58173.0,0.27]
[1617730844334,0.10725655,58174.0,58173.0,0.39946]
[1617730844536,0.10725655,58174.0,58173.0,0.96030716]
[1617730844837,0.10725655,58174.0,58173.0,0.69030716]
[1617730845136,0.10725655,58174.0,58173.0,0.96030716]
[1617730845435,0.10725655,58174.0,58173.0,0.39946]
[1617730847540,0.10725655,58174.0,58173.0,0.96032509]
[1617730848138,0.10725655,58174.0,58173.0,0.39946]
[1617730849539,0.10725655,58174.0,58173.0,0.90029791]
[1617730850239,0.10745655,58174.0,58173.0,0.90029791]
[1617730850850,0.10745655,58174.0,58173.0,1.46108229]
[1617730852945,0.10745655,58174.0,58173.0,0.39946]
[1617730853347,0.10745655,58174.0,58173.0,1.46078915]
[1617730857250,0.10745655,58174.0,58173.0,0.90008696]
[1617730860260,0.10745655,58174.0,58173.0,1.46095755]
[1617730862458,0.10745655,58174.0,58173.0,0.90008696]
[1617730865862,0.15845655,58174.0,58173.0,0.90008696]
[1617730866064,0.10745655,58174.0,58173.0,0.90008696]
[1617730867072,0.15955655,58174.0,58173.0,0.90008696]
[1617730867265,0.10745655,58174.0,58173.0,0.90008696]
[1617730867690,0.10745655,58174.0,58173.0,0.77062696]
[1617730868211,1.60745655,58174.0,58173.0,0.50062696]
[1617730869366,1.60745655,58174.0,58173.0,0.47412696]
[1617730869566,1.60745655,58174.0,58173.0,0.46832696]
[1617730870686,1.60745655,58174.0,58173.0,0.40022696]
[1617730870887,1.60745655,58174.0,58173.0,0.36712696]
[1617730871078,1.60745655,58174.0,58164.0,0.56194023]
[1617730871670,1.60745655,58174.0,58165.0,0.27]
[1617730872775,0.10725655,58166.0,58165.0,0.27]
[1617730872973,0.25956655,58166.0,58165.0,0.27]
[1617730873380,0.25956655,58166.0,58164.0,0.01]
[1617730873806,0.25956655,58166.0,58165.0,0.27]
[1617730874116,0.25956655,58166.0,58153.0,0.1988065]
[1617730874117,0.25956655,58166.0,58164.0,0.27]
[1617730874307,0.25956655,58166.0,58165.0,0.27]
[1617730874589,0.25956655,58166.0,58160.0,0.56162674]
[1617730874773,1.75956655,58166.0,58163.0,0.26]
[1617730874973,1.75956655,58166.0,58156.0,0.09155452]
[1617730874974,1.75956655,58166.0,58165.0,0.27]
[1617730875173,1.75956655,58166.0,58156.0,0.56137414]
[1617730875415,1.75956655,58166.0,58164.0,0.26]
[1617730875589,1.75956655,58166.0,58157.0,0.26]
[1617730875774,1.75956655,58166.0,58155.0,0.01]
[1617730875975,1.75956655,58166.0,58165.0,0.01]
[1617730876177,1.75956655,58166.0,58158.0,0.27]
[1617730876375,1.75956655,58166.0,58155.0,0.57087197]
[1617730876577,1.75956655,58166.0,58165.0,0.01]
[1617730876876,1.75956655,58166.0,58156.0,0.27]
[1617730877076,1.75956655,58166.0,58165.0,0.02]
[1617730877477,1.75956655,58166.0,58156.0,0.26]
[1617730877777,1.75956655,58166.0,58165.0,0.01]
[1617730877977,1.75956655,58166.0,58157.0,0.26]
[1617730878378,0.25956655,58166.0,58160.0,0.27]
[1617730878577,0.10725655,58166.0,58155.0,0.02]
[1617730878790,0.0002,58174.0,58158.0,0.25]
[1617730878977,0.0002,58174.0,58153.0,0.10725655]
[1617730878978,0.0002,58174.0,58161.0,0.27]
[1617730879179,0.0002,58174.0,58156.0,0.01]
[1617730879479,0.0002,58174.0,58162.0,0.27]
[1617730879879,0.0002,58174.0,58159.0,0.01]
[1617730880079,0.0002,58174.0,58163.0,0.26]
[1617730880480,0.0002,58174.0,58159.0,0.27]
[1617730880695,0.0002,58174.0,58164.0,0.25]
[1617730881096,0.0002,58174.0,58160.0,0.27]
[1617730881303,0.0002,58174.0,58165.0,0.27]
[1617730881587,0.0002,58174.0,58159.0,0.11683]
[1617730881786,0.0002,58174.0,58161.0,0.27]
[1617730881987,0.0002,58174.0,58166.0,0.27]
[1617730882186,0.0002,58174.0,58160.0,0.01]
[1617730882386,0.0002,58174.0,58159.0,0.11683]
[1617730882587,1.5002,58174.0,58159.0,0.11683]
[1617730882887,1.5002,58174.0,58160.0,0.37725655]
[1617730883991,1.5002,58174.0,58160.0,0.47891655]
[1617730884790,0.10725655,58161.0,58160.0,0.47891655]
[1617730886393,0.10725655,58161.0,58160.0,0.97771159]
[1617730887694,0.0002,58174.0,58160.0,0.97771159]
[1617730888096,0.0002,58174.0,58167.0,0.49828228]
[1617730888395,0.0002,58174.0,58173.0,1.0]
[1617730888595,0.0002,58174.0,58173.0,1.13325]
[1617730888795,0.0002,58174.0,58173.0,0.25050655]
[1617730890095,0.0002,58174.0,58173.0,1.25050655]
[1617730890795,0.10745655,58174.0,58173.0,1.25050655]
[1617730891196,0.10745655,58174.0,58173.0,0.25050655]
[1617730894297,0.10745655,58174.0,58173.0,1.25050655]
[1617730894598,0.10745655,58174.0,58173.0,0.25050655]
[1617730896796,0.10745655,58174.0,58173.0,0.30220655]
[1617730898903,0.10745655,58174.0,58173.0,0.25050655]
[1617730899100,0.0002,58174.0,58173.0,1.25050655]
[1617730899902,0.0002,58174.0,58173.0,1.74661575]
[1617730900904,0.0002,58174.0,58173.0,0.79831575]
[1617730901304,0.0002,58174.0,58173.0,0.74661575]
[1617730902805,0.0002,58174.0,58173.0,0.25050655]
[1617730903005,0.0002,58174.0,58173.0,0.74660905]
[1617730904808,0.0002,58174.0,58173.0,0.79830905]
[1617730905006,0.0002,58174.0,58173.0,0.74660905]
[1617730907411,0.0002,58174.0,58173.0,1.74660905]
[1617730910110,0.0002,58174.0,58173.0,0.74660905]
[1617730910513,0.0002,58174.0,58173.0,0.6393525]
[1617730917836,0.0002,58174.0,58173.0,1.6393525]
[1617730918746,0.0002,58174.0,58173.0,0.6393525]
[1617730927140,0.0002,58174.0,58173.0,1.6393525]
[1617730927339,0.0002,58174.0,58173.0,0.6393525]
[1617730929841,0.0002,58174.0,58173.0,1.6393525]
[1617730934561,0.0002,58174.0,58173.0,1.6902525]
[1617730934778,0.0002,58174.0,58173.0,1.6393525]
[1617730936950,0.0002,58174.0,58173.0,1.6906525]
[1617730937249,0.10725655,58181.0,58173.0,1.6393525]
[1617730937650,0.10725655,58181.0,58174.0,1.0]
[1617730937850,0.10725655,58181.0,58180.0,1.0]
[1617730938250,0.10725655,58181.0,58180.0,1.49670891]
[1617730938450,0.10725655,58181.0,58180.0,1.50670891]
[1617730939353,0.10725655,58181.0,58180.0,1.61396546]
[1617730939753,0.10725655,58181.0,58180.0,0.61396546]
[1617730942657,0.10725655,58181.0,58180.0,1.61396546]
[1617730942858,0.10725655,58181.0,58180.0,0.61396546]
[1617730943058,0.10725655,58181.0,58180.0,1.61396546]
[1617730944061,0.10725655,58181.0,58180.0,0.61396546]
[1617730946861,0.10725655,58181.0,58180.0,1.61396546]
[1617730950168,0.10725655,58181.0,58180.0,0.61396546]
[1617730956578,0.10725655,58181.0,58180.0,0.11725655]
[1617730956883,0.10725655,58181.0,58180.0,0.61328031]
[1617730960484,0.10725655,58181.0,58180.0,1.61328031]
[1617730967192,0.10725655,58181.0,58180.0,0.50602376]
[1617730967492,0.27729655,58181.0,58180.0,0.49602376]
[1617730967894,0.22569655,58181.0,58180.0,0.49602376]
[1617730968094,0.22569655,58181.0,58178.0,0.49720174]
[1617730968505,0.22569655,58181.0,58176.0,0.49734021]
[1617730968902,0.0512,58180.0,58176.0,0.49734021]
[1617730969197,0.0512,58180.0,58166.0,0.10725655]
[1617730969198,0.0512,58180.0,58177.0,0.4972668]
[1617730969796,0.0512,58180.0,58176.0,0.49731595]
[1617730970897,0.0512,58180.0,58177.0,0.49745044]
[1617730972700,0.0512,58180.0,58166.0,0.10725655]
[1617730972701,0.0512,58180.0,58175.0,0.49751772]
[1617730972900,0.18634,58180.0,58175.0,0.49751772]
[1617730973401,0.13514,58180.0,58175.0,0.49751772]
[1617730974100,0.10725655,58181.0,58177.0,0.60010518]
[1617730974901,0.10725655,58181.0,58178.0,0.49710089]
[1617730975404,0.15865655,58181.0,58178.0,0.49710089]
[1617730975905,0.10725655,58181.0,58178.0,0.49710089]
[1617730976305,0.10725655,58181.0,58177.0,0.49717553]
[1617730976605,0.22064655,58181.0,58177.0,0.49717553]
[1617730976808,0.22064655,58181.0,58176.0,0.49727577]
[1617730978111,0.0002,58180.0,58174.0,0.49723088]
[1617730979313,0.0002,58180.0,58175.0,0.49725589]
[1617730983314,0.0002,58180.0,58176.0,0.49729139]
[1617730986318,0.0002,58180.0,58177.0,0.49816384]
[1617730988320,0.0002,58180.0,58178.0,0.27]
[1617730997135,0.0002,58180.0,58178.0,0.76840682]
[1617730999535,0.0002,58180.0,58179.0,1.0]
[1617730999838,0.0002,58180.0,58179.0,0.49813627]
[1617731000036,0.0002,58180.0,58179.0,0.76813627]
[1617731001336,0.0002,58180.0,58179.0,1.76813627]
[1617731001636,0.0002,58180.0,58179.0,0.76813627]
[1617731003237,0.0002,58180.0,58179.0,0.27]
[1617731003737,0.0002,58180.0,58178.0,0.49830164]
[1617731003938,0.0002,58180.0,58179.0,0.27]
[1617731004239,0.0002,58180.0,58178.0,0.49823422]
[1617731004738,0.0002,58180.0,58179.0,0.27]
[1617731004942,0.0002,58180.0,58178.0,0.49823422]
[1617731005141,0.0002,58180.0,58179.0,0.27]
[1617731009541,0.0002,58180.0,58178.0,0.01]
[1617731009740,0.0002,58180.0,58179.0,0.27]
[1617731010143,0.0002,58180.0,58178.0,0.27]
[1617731011045,0.0002,58180.0,58178.0,0.76834194]
[1617731011444,0.0002,58180.0,58178.0,0.49834194]
[1617731011744,0.0002,58180.0,58179.0,0.27]
[1617731012647,0.0002,58180.0,58178.0,0.50831936]
[1617731013146,0.0002,58180.0,58179.0,0.26]
[1617731016759,0.0002,58180.0,58178.0,0.02]
[1617731016952,0.0002,58180.0,58179.0,0.25]
[1617731017357,0.0002,58180.0,58178.0,0.27]
[1617731017553,0.0002,58180.0,58177.0,0.02]
[1617731017755,0.0002,58180.0,58179.0,0.25]
[1617731017952,0.0002,58180.0,58176.0,0.60577404]
[1617731018152,0.0002,58180.0,58178.0,0.27]
[1617731018360,0.0002,58180.0,58179.0,0.27]